Cogmind - Beta 10.1 *** ADVENTURER MODE // 2020.10.11 @ 16:48:19 Player: spacekitteh Result: Destroyed by G-34 Mercenary with Small Laser Performance ------------- Evolutions (0) 0 Regions Visited (1) 200 Robots Destroyed (8) 40 Value Destroyed (227) 227 Prototype IDs (2) 40 Alien Tech Used (0) 0 Bonus (0) 0 TOTAL SCORE: 507 Bonus ------- None Cogmind --------- Core Integrity 0/250 Matter 300/300 Energy 100/100 System Corruption 0% Temperature Cool (18) Movement Rolling (100) Location -10/Materials Parts ------- > --- POWER (1) -------- (None) > --- PROPULSION (2) --- Compact Wheel > --- UTILITY (2) ------ Small Storage Unit > --- WEAPON (2) ------- (None) > --- INVENTORY (6) ---- Seismic Analyzer Peak State ------------ > --- POWER ------------ Light Ion Engine > --- PROPULSION ------- Compact Wheel Compact Wheel > --- UTILITY ---------- Small Storage Unit Improved Terrain Scanner > --- WEAPON ----------- Medium Laser Assault Rifle > --- INVENTORY -------- Seismic Analyzer [Rating: 8] Favorites ----------- Power Light Ion Engine Engine Light Ion Engine Propulsion Compact Wheel Wheel Compact Wheel Utility Small Storage Unit Device Improved Terrain Scanner Storage Small Storage Unit Weapon Assault Rifle Energy Gun Medium Laser Ballistic Gun Assault Rifle Build | -11 -10 ------- Run | Scr Mat Slots Evolved . | . . Power . | . . Propulsion . | . . Utility . | . . Weapon . | . . Parts Attached 8 | 7 1 Power 1 | 1 . Engine 1 | 1 . Core . | . . Reactor . | . . Propulsion 2 | 2 . Treads . | . . Leg . | . . Wheel 2 | 2 . Hover . | . . Flight . | . . Utility 2 | 2 . Device 1 | 1 . Storage 1 | 1 . Processor . | . . Hackware . | . . Protection . | . . Artifact . | . . Weapon 3 | 2 1 Energy Gun 2 | 1 1 Energy Cannon . | . . Ballistic Gun 1 | 1 . Ballistic Cannon . | . . Launcher . | . . Special Weapon . | . . Impact Weapon . | . . Slashing Weapon . | . . Piercing Weapon . | . . Special Melee Weapon . | . . Unidentified Prototypes . | . . Parts Lost 6 | . 6 Power 1 | . 1 Propulsion 1 | . 1 Utility 1 | . 1 Weapon 3 | . 3 Highest Loss Streak 4 | . 4 Average Slot Usage (%) 75 | . 75 Engine 3 | . 3 Wheel 28 | . 28 Device 12 | . 12 Storage 14 | . 14 Energy Gun 6 | . 6 Ballistic Gun 10 | . 10 Naked Turns . | . . Heaviest Build 12 | 12 12 Greatest Support 32 | 32 32 Greatest Overweight (x) 2 | 2 . Average Overweight (x) . | . . Largest Inventory Capacity 6 | 6 6 Average Capacity 5 | 5 6 Most Carried 3 | 3 2 Average Carried . | . 1 Final Capacity 6 | 6 6 Final Carried 1 | 1 1 Class Distribution -------------------- 100% | Mutant Dominant Class ---------------- Mutant | -10/Materials Resources | -11 -10 ----------- Run | Scr Mat Matter Collected 328 | 266 62 Remotely . | . . Salvage Created 271 | 49 222 Parts 15 | 6 9 Haulers Intercepted . | . . Recyclers Shooed . | . . Parts Field Recycled . | . . Retrieved Matter . | . . Parts Self-Destructed . | . . Prevented . | . . Kills | -11 -10 ------- Run | Scr Mat Combat Hostiles Destroyed 5 | . 5 Melee 1 | . 1 Guns 2 | . 2 AOE 2 | . 2 Classes Destroyed 2 | 1 1 Tunneler 3 | 3 . Grunt 5 | . 5 Best Kill Streak 3 | 3 2 Combat Bots Only 2 | . 2 Max Kills in Single Turn 2 | 2 2 Gunslinging . | . . Exploded 2 | . 2 Melee 1 | . 1 Uniques/NPCs Destroyed . | . . Combat | -11 -10 -------- Run | Scr Mat Damage Taken 599 | . 599 Core 256 | . 256 Absorbed by Shields . | . . Core Remaining (%) 100 | 100 . Volleys Fired 31 | 5 26 Largest 2 | 2 2 Hottest 70 | 70 70 Shots Fired 43 | 10 33 Gun 43 | 10 33 Cannon . | . . Launcher . | . . Special . | . . Kinetic 21 | 5 16 Thermal 22 | 5 17 Explosive . | . . Electromagnetic . | . . Robot Hit Streak 9 | 8 9 Robot Miss Streak 2 | . 2 Penetration Max . | . . Secondary Targets . | . . Shots Hit Robots 35 | 8 27 Core Hits 16 | 3 13 Critical Hits . | . . Critical Kills . | . . Critical Parts Destroyed . | . . Melee Attacks . | . . Impact . | . . Slashing . | . . Piercing . | . . Sneak Attacks . | . . Combat Hostiles . | . . Follow-up Attacks . | . . Damage Inflicted 604 | 119 485 Guns 444 | 119 325 Cannons . | . . Explosions 156 | . 156 Melee . | . . Ramming 4 | . 4 Kinetic 207 | 57 150 Thermal 237 | 62 175 Explosive 156 | . 156 Electromagnetic . | . . Impact . | . . Slashing . | . . Piercing . | . . Highest Corruption . | . . Average Corruption . | . . Corruption Purged . | . . Overload Shots . | . . Overflow Damage 11 | . 11 Projectiles . | . . Explosions 11 | . 11 Melee . | . . Knockbacks . | . . Impact . | . . Kinetic . | . . Secondary . | . . Self-Inflicted Damage 52 | . 52 Shots 1 | . 1 Rammed 2 | . 2 Targets Rammed 2 | . 2 Kicked . | . . Crushed . | . . Highest Temperature 183 | 36 183 Average Temperature 56 | 16 69 Received Heat Transfer 399 | . 399 Siege Activations . | . . Robots Corrupted . | . . Combat Hostiles . | . . Parts Fried . | . . Impact Corruptions . | . . Robots Melted . | . . Combat Hostiles . | . . Parts Melted . | . . Heat Transferred 632 | 185 447 Parts Sabotaged . | . . Parts Stolen . | . . Parts Stripped . | . . Power Chain Reactions . | . . Missiles Intercepted . | . . Alert | -11 -10 ------- Run | Scr Mat Peak Influence 136 | 15 136 Initial 8 | . 8 Average 45 | 3 63 Maximum Alert Level . | . . Low Security (%) 100 | 100 100 Level 1 . | . . Level 2 . | . . Level 3 . | . . Level 4 . | . . Level 5 . | . . High Security . | . . Max Security . | . . Squads Dispatched 1 | . 1 Investigation 1 | . 1 Extermination . | . . Reinforcement . | . . Assault . | . . Garrison . | . . Intercept . | . . Construction Impeded . | . . Haulers Reinforced . | . . Stealth | -11 -10 --------- Run | Scr Mat Distress Signals . | . . Communications Jammed . | . . Distress Signals . | . . Times Spotted 11 | . 11 Peak Tracking Total 6 | . 6 Tactical Retreats . | . . Traps | -11 -10 ------- Run | Scr Mat Traps Triggered . | . . Indirectly . | . . Trap Hack Attempts . | . . Triggered . | . . Disarmed . | . . Reprogrammed . | . . Reused . | . . Traps Extracted . | . . Installed . | . . Triggered . | . . Machines | -11 -10 ---------- Run | Scr Mat Machines Disabled 1 | . 1 Max in Single Turn 1 | . 1 Machines Sabotaged . | . . Garrisons Compromised . | . . Overloaded Fab Kills . | . . Fab Network Shutdowns . | . . Hacking | -11 -10 --------- Run | Scr Mat Machines Accessed 2 | . 2 Terminals 2 | . 2 Fabricators . | . . Repair Stations . | . . Recycling Units . | . . Scanalyzers . | . . Garrison Access . | . . Total Hacks 7 | . 7 Successful 6 | . 6 Failed 1 | . 1 Catastrophic . | . . Database Lockouts . | . . Manual . | . . Terminals 7 | . 7 Fabricators . | . . Repair Stations . | . . Recycling Units . | . . Scanalyzers . | . . Garrison Access . | . . Terminal Hacks 6 | . 6 Record 1 | . 1 Prototype ID Bank 1 | . 1 Dispatch Records 1 | . 1 Security Status 1 | . 1 Patrol Status 1 | . 1 Zone Layout 1 | . 1 Fabricator Hacks . | . . Repair Station Hacks . | . . Recycling Unit Hacks . | . . Scanalyzer . | . . Garrison Access Hacks . | . . Unauthorized Hacks . | . . Terminals . | . . Fabricators . | . . Repair Stations . | . . Recycling Units . | . . Scanalyzers . | . . Garrison Access . | . . Data Cores Recovered . | . . Used . | . . Hacking Detections 2 | . 2 Full Trace Events 2 | . 2 Feedback Events . | . . Feedback Blocked . | . . Robot Schematics Acquired . | . . Robots Built . | . . Matter . | . . Time . | . . Total Robot Build Rating . | . . Part Schematics Acquired . | . . Parts Built . | . . Matter . | . . Time . | . . Total Part Build Rating . | . . Parts Repaired . | . . Time . | . . Parts Recycled . | . . Recycled Matter . | . . Retrieved Matter . | . . Retrieved Components . | . . Parts Scanalyzed . | . . Part Schematics Acquired . | . . Parts Damaged . | . . Bothacking | -11 -10 ------------ Run | Scr Mat Used RIF Installer . | . . Robots Hacked . | . . Non-combat . | . . Combat . | . . Robot Hacks Applied . | . . Relay Couplers Released . | . . Robots Rewired . | . . Allies Hacked . | . . Hacks Repelled . | . . Allies | -11 -10 -------- Run | Scr Mat Total Allies . | . . Largest Group . | . . Highest-Rated Group . | . . Highest-Rated Ally . | . . Total Orders . | . . Ally Attacks . | . . Total Damage . | . . Kills . | . . Allies Corrupted . | . . Allies Melted . | . . Intel | -11 -10 ------- Run | Scr Mat Robot Analysis Total . | . . Derelict Logs Recovered . | . . Drone Launches . | . . Drone Recoveries . | . . Exploration | -11 -10 ------------- Run | Scr Mat Turns Passed 266 | 83 183 Spaces Moved 170 | 53 117 Core 26 | 26 . Treads . | . . Legs . | . . Wheels 144 | 27 117 Hover . | . . Flight . | . . Fastest Speed 50 | 50 100 Average Speed 100 | 101 100 Slowest Speed 150 | 150 100 Overloaded Moves . | . . Propulsion Burnouts . | . . Robots Hopped . | . . Cave-ins Triggered . | . . Exploration Rate (%) 12 | 4 20 Regions Visited 1 Branch Regions . Pre-discovered Areas . | . . Known Exits Taken . | . . Unknown Exits Taken 1 | 1 . Scrap Searched . | . . Spaces Dug . | . . Terrain Destroyed 16 | . 16 Melee . | . . Projectile . | . . AOE 16 | . 16 Terrain Rammed . | . . Walls Destroyed . | . . Machines Disabled . | . . Actions | -11 -10 --------- Run | Scr Mat Total 222 | 72 150 Wait 3 | . 3 Move 169 | 52 117 Hop . | . . Pick Up 9 | 8 1 Fast Attach . | . . Attach 8 | 7 1 Detach . | . . Swap . | . . Drop . | . . Fire 31 | 5 26 Melee . | . . Ram 2 | . 2 Kick . | . . Crush . | . . Escape Stasis . | . . Rewire . | . . Trap . | . . Miscellaneous . | . . Route ------- -11/Scrapyard -10/Materials (discovered 1 exit: [Mat]) History --------- Turn | Location | Event 16 | -11/Scrapyard | Discovered new exit (range 16) 84 | -11/Scrapyard | Entered Materials 232 | -10/Materials | Discovered new exit (range 17) 256 | -10/Materials | Core integrity fell below 50% 265 | -10/Materials | Core integrity fell below 20% 267 | -10/Materials | Destroyed by G-34 Mercenary with Small Laser Last Messages --------------- 00243_ U-05 Engineer builds a Wall. 00244_ U-05 Engineer lays Concrete. 00245_ K-01 Serf collects debris. 00245_ U-05 Engineer lays Concrete. 00249_ K-01 Serf collects debris. 00249_ U-05 Engineer lays Concrete. 00250_ U-05 Engineer builds a Wall. 00251_ U-05 Engineer lays Concrete. 00257_ Sml. Laser destroyed. 00257_ K-01 Serf collects debris. 00258_ U-05 Engineer lays Concrete. 00265_ Com. Wheel destroyed. 00265_ Slammed into G-34 Mercenary. 00266_ U-05 Engineer lays Concrete. 00266_ Slammed into G-34 Mercenary. 00266_ G-34 Mercenary destroyed. [Achievement: Fist Fight] 00266_ Destabilizing: Core damaged (-5). 00267_ U-05 Engineer lays Concrete. 00267_ U-05 Engineer builds a Wall. Map ----- +----------------------------------------------------+ | ???#?????????????????????????????????????????????? | | ?????????????????????????????????????????????????? | | ?????????????????????????????????????????????????? | | ????????????? #??????????????????????????????????? | | ########### #??????????????????????????????????? | | #??????????????????????????????????? | | + ?"????? ???????????????????????? | | #???????? #??????????????????????? | | ## ####### # """"" # #####??????????????????? | | # #?????# # """"" # ??????????????????? | | # #?????# # # a ??????????????????? | | # ####### #####/### ??????????????????? | | # # # #??## #?# ??????????????????? | | # # # #???# #?# #####??????????????????? | | ## # " # #???# #?# #??????????????????????? | | # # "" # #???# #?# #??????????????????????? | | # # "" # #???# #?# #??????????????????????? | | # !# """ # #???# ### #??????????????????????? | | # %# "" + ##### # # #??#???????????????????? | | #% # """ # #??????????????????????? | | # # """ # % ##?????????????????????? | | # # """ # u% ##?????????????????????? | | + # " ## "" #######????????????????? | | ## # ## "T #????????????????? | | ## ####+### "" g%g #????????????????? | | [@* T #????????????????? | | r u =! #????????????????? | | #+############## # #g #????????????????? | | # #????# # # #### g ##????????????????? | | # """ #????# # # #?????????????????? | | # """"" #?#??# + # #?????????????????? | | # """"" #????# # # #?????????????????? | | # """"" ###### # # #?????????????????? | | # """ + ######### < #?????????????????? | | # #######+######???# #?????????????????? | | # ## #???####??????????????????? | | ############ """ """ #?????????????????????????? | | #??????????# """ """ #?????????????????????????? | | #??????????# """ """ #?????????????????????????? | | ?????????????????????????????????????????????????? | | ?????????????????????????????????????????????????? | | ??#??????????????????????????????????????????????? | | ?????????????????????????????????????????????????? | | | | | | | | | | | | | | | +----------------------------------------------------+ Best States ------------- Heat Dissipation 25 Energy Generation 10 Energy Capacity 125 Matter Stores 300 Matter Capacity 300 Sight Range 16 Terrain Scan Range 16 Terrain Scan Density 10 Resistance: KI 20 Resistance: TH 20 Resistance: EX 20 Resistance: EM 20 Resistance: I 20 Resistance: S 20 Resistance: P 20 Evasion (%) 50 Offensive Hacking 10 Item Schematics ----------------- None Robot Schematics ------------------ None Fabricated ------------ Nothing Alien Tech Used ----------------- None Achievements -------------- Fist Fight Challenges ------------ None Game ------ Seed StasisGuidedUnit Manual? 0 Play Time 00:08:08 Cumulative 4.0 hours Start 2020.10.11 @ 16:36:15 End 2020.10.11 @ 16:48:19 Sessions 1 Manual Loads 0 Difficulty Adventurer Special Mode None Game No. 4 Rogue 0 Adventurer 4 Explorer 0 Win Type - Total 0 Types 0/0/0/0/0/0/0/0/0 Lore% 2 Gallery% 7 Achievement% 8 Wizard Run 0 Options --------- ASCII 0 Keyboard 0 Movement Mouse Keybinds 0 Fullscreen 1 Font 24/Smallcaps Map View 183x50 Tactical HUD 1 Map Filters NONE Filters NONE Steam 1 RUN: d7fe558c-13cd-42e8-8d34-2b678d860cb5